[Event "Championnat du monde jeunes U12F"]
[Date "2024.11.19"]
[White "Ejsymont, Blanka"]
[Black "Li, Peishan"]
[WhiteElo "1945"]
[BlackElo "1729"]
[Round "5.12"]
[Result "1-0"]
[TimeControl "5400+30"]

1. e4 {[%clk 1:30:59]} 1... c5 {[%clk 1:30:56]} 2. Nf3 {[%clk 1:31:25]} 2... e6
{[%clk 1:31:19]} 3. d4 {[%clk 1:31:51]} 3... cxd4 {[%clk 1:31:46]} 4. Nxd4
{[%clk 1:32:14]} 4... a6 {[%clk 1:32:12]} 5. a3 {[%clk 1:32:38]} 5... Qc7 {[%clk
1:32:37]} 6. c4 {[%clk 1:33:02]} 6... Nf6 {[%clk 1:32:58]} 7. Nc3 {[%clk
1:33:18]} 7... Nc6 {[%clk 1:32:52]} 8. Be3 {[%clk 1:28:05]} 8... Be7 {[%clk
1:26:32]} 9. Be2 {[%clk 1:24:24]} 9... O-O {[%clk 1:22:46]} 10. O-O {[%clk
1:22:03]} 10... Rd8 {[%clk 1:13:02]} 11. f4 {[%clk 1:12:44]} 11... d6 {[%clk
1:07:42]} 12. b4 {[%clk 1:01:34]} 12... Nxd4 {[%clk 0:57:10]} 13. Qxd4 {[%clk
0:58:47]} 13... e5 {[%clk 0:53:20]} 14. Qb6 {[%clk 0:51:45]} 14... Qxb6 {[%clk
0:53:17]} 15. Bxb6 {[%clk 0:51:54]} 15... Re8 {[%clk 0:51:49]} 16. f5 {[%clk
0:48:21]} 16... Bd7 {[%clk 0:49:41]} 17. Rad1 {[%clk 0:36:01]} 17... Rac8 {[%clk
0:44:38]} 18. g4 {[%clk 0:24:23]} 18... h6 {[%clk 0:44:54]} 19. h3 {[%clk
0:21:58]} 19... Kf8 {[%clk 0:29:54]} 20. Be3 {[%clk 0:17:10]} 20... b5 {[%clk
0:16:09]} 21. g5 {[%clk 0:16:55]} 21... hxg5 {[%clk 0:16:26]} 22. Bxg5 {[%clk
0:17:15]} 22... bxc4 {[%clk 0:16:25]} 23. Bxf6 {[%clk 0:17:21]} 23... gxf6
{[%clk 0:14:47]} 24. Kh2 {[%clk 0:15:57]} 24... Bc6 {[%clk 0:10:27]} 25. Rf3
{[%clk 0:13:52]} 25... Red8 {[%clk 0:07:28]} 26. Rg3 {[%clk 0:12:52]} 26... Bb7
{[%clk 0:06:15]} 27. Bh5 {[%clk 0:10:18]} 27... a5 {[%clk 0:01:18]} 28. Rdg1
{[%clk 0:09:16]} 28... Ke8 {[%clk 0:01:45]} 29. Rg7 {[%clk 0:09:06]} 29... axb4
{[%clk 0:01:20]} 30. Bxf7+ {[%clk 0:07:58]} 30... Kd7 {[%clk 0:01:47]} 31. Be6+
{[%clk 0:07:21]} 31... Kc6 {[%clk 0:01:44]} 32. axb4 {[%clk 0:04:22]} 32... Rc7
{[%clk 0:02:04]} 33. Nd5 {[%clk 0:04:08]} 33... Re8 {[%clk 0:02:20]} 34. b5+
{[%clk 0:03:30]} 1-0

[Variant "Standard"]
[Site "Europe Echecs"]

[Event "Championnat du monde jeunes U12F"]
[Date "2024.11.19"]
[White "Hanya Shah"]
[Black "Zavivaeva, Angelina"]
[WhiteElo "1888"]
[BlackElo "1499"]
[Round "5.13"]
[Result "1-0"]
[TimeControl "5400+30"]

1. c4 {[%clk 1:30:58]} 1... c6 {[%clk 1:30:55]} 2. Nc3 {[%clk 1:31:24]} 2... d5
{[%clk 1:28:49]} 3. e3 {[%clk 1:31:39]} 3... Nf6 {[%clk 1:29:11]} 4. Nf3 {[%clk
1:32:01]} 4... e6 {[%clk 1:28:19]} 5. Qc2 {[%clk 1:32:16]} 5... Bd6 {[%clk
1:26:34]} 6. d4 {[%clk 1:32:39]} 6... Nbd7 {[%clk 1:26:15]} 7. g4 {[%clk
1:32:31]} 7... dxc4 {[%clk 1:10:28]} 8. Bxc4 {[%clk 1:29:22]} 8... Nxg4 {[%clk
0:59:29]} 9. Rg1 {[%clk 1:26:27]} 9... Nxh2 {[%clk 0:38:45]} 10. Nxh2 {[%clk
1:26:33]} 10... Bxh2 {[%clk 0:39:02]} 11. Rxg7 {[%clk 1:26:42]} 11... Qh4 {[%clk
0:36:38]} 12. Bd2 {[%clk 1:14:06]} 12... Qh6 {[%clk 0:26:15]} 13. Rg2 {[%clk
1:08:46]} 13... b5 {[%clk 0:19:24]} 14. Bd3 {[%clk 1:02:10]} 14... Bb7 {[%clk
0:16:49]} 15. O-O-O {[%clk 0:59:20]} 15... Qh3 {[%clk 0:12:56]} 16. Be4 {[%clk
0:40:21]} 16... f5 {[%clk 0:05:19]} 17. Rh1 {[%clk 0:37:57]} 17... fxe4 {[%clk
0:05:08]} 18. Rhxh2 {[%clk 0:30:26]} 18... Qf3 {[%clk 0:02:49]} 19. Rg3 {[%clk
0:30:10]} 19... Qf7 {[%clk 0:01:00]} 20. Nxe4 {[%clk 0:29:44]} 20... Qe7 {[%clk
0:01:04]} 21. a3 {[%clk 0:21:58]} 21... a5 {[%clk 0:00:39]} 22. f3 {[%clk
0:16:19]} 22... b4 {[%clk 0:00:39]} 23. a4 {[%clk 0:15:36]} 23... O-O-O {[%clk
0:00:36]} 24. Rhg2 {[%clk 0:15:32]} 24... Qh4 {[%clk 0:01:03]} 25. Nd6+ {[%clk
0:13:37]} 25... Kc7 {[%clk 0:00:57]} 26. Nf7 {[%clk 0:13:32]} 26... Rhf8 {[%clk
0:00:53]} 27. Nxd8 {[%clk 0:13:37]} 27... Kxd8 {[%clk 0:00:43]} 28. e4 {[%clk
0:12:54]} 28... Kc7 {[%clk 0:00:50]} 29. f4 {[%clk 0:09:03]} 29... Qf6 {[%clk
0:00:46]} 30. Be3 {[%clk 0:08:27]} 30... h5 {[%clk 0:00:54]} 31. d5 {[%clk
0:07:40]} 31... exd5 {[%clk 0:00:50]} 32. exd5 {[%clk 0:07:41]} 32... Qd6 {[%clk
0:00:34]} 33. Rd2 {[%clk 0:06:13]} 33... Kb8 {[%clk 0:00:35]} 34. Rg6 {[%clk
0:04:03]} 34... Rf6 {[%clk 0:00:35]} 35. Rxf6 {[%clk 0:02:06]} 35... Qxf6 {[%clk
0:00:46]} 36. dxc6 {[%clk 0:01:23]} 36... Bxc6 {[%clk 0:00:47]} 37. Qd3 {[%clk
0:01:08]} 37... Bxa4 {[%clk 0:00:35]} 38. Qd6+ {[%clk 0:01:15]} 38... Qxd6
{[%clk 0:00:58]} 39. Rxd6 {[%clk 0:01:41]} 39... Kc7 {[%clk 0:00:32]} 40. Rh6
{[%clk 0:01:52]} 40... Bb3 {[%clk 0:00:35]} 41. Rxh5 {[%clk 0:01:53]} 41... a4
{[%clk 0:00:57]} 42. Bc5 {[%clk 0:01:19]} 42... Nxc5 {[%clk 0:00:56]} 43. Rxc5+
{[%clk 0:01:43]} 43... Kb6 {[%clk 0:01:18]} 44. Rh5 {[%clk 0:01:37]} 44... a3
{[%clk 0:01:31]} 45. bxa3 {[%clk 0:01:57]} 45... bxa3 {[%clk 0:01:18]} 46. Rh3
{[%clk 0:02:16]} 46... Bf7 {[%clk 0:00:54]} 47. Rxa3 {[%clk 0:02:42]} 47... Kc5
{[%clk 0:01:17]} 48. Kd2 {[%clk 0:02:58]} 48... Kd5 {[%clk 0:01:04]} 49. Ke3
{[%clk 0:03:07]} 49... Bg6 {[%clk 0:01:05]} 50. Ra5+ {[%clk 0:03:28]} 50... Ke6
{[%clk 0:01:19]} 51. Kd4 {[%clk 0:03:49]} 51... Kf6 {[%clk 0:01:27]} 52. Ra6+
{[%clk 0:02:47]} 52... Kf5 {[%clk 0:01:22]} 53. Rxg6 {[%clk 0:02:37]} 53... Kxg6
{[%clk 0:01:25]} 54. Ke5 {[%clk 0:03:02]} 54... Kf7 {[%clk 0:00:51]} 55. Ke4 1-0

[Variant "Standard"]
[Site "Europe Echecs"]

[Event "Championnat du monde jeunes U12F"]
[Date "2024.11.19"]
[White "Tong Thai Hoang An"]
[Black "Chichinadze, Anastasia"]
[WhiteElo "1869"]
[BlackElo "1682"]
[Round "5.14"]
[Result "1-0"]
[TimeControl "5400+30"]

1. d4 {[%clk 1:30:56]} 1... Nf6 {[%clk 1:30:49]} 2. c4 {[%clk 1:31:19]} 2... e6
{[%clk 1:31:16]} 3. g3 {[%clk 1:31:37]} 3... Bb4+ {[%clk 1:31:41]} 4. Nd2 {[%clk
1:32:02]} 4... O-O {[%clk 1:31:50]} 5. Bg2 {[%clk 1:31:24]} 5... d5 {[%clk
1:30:14]} 6. Nf3 {[%clk 1:30:01]} 6... Nc6 {[%clk 1:18:02]} 7. Qc2 {[%clk
1:23:40]} 7... Ne4 {[%clk 1:13:17]} 8. e3 {[%clk 1:15:45]} 8... Nxd2 {[%clk
0:55:58]} 9. Bxd2 {[%clk 1:13:09]} 9... Bxd2+ {[%clk 0:56:16]} 10. Nxd2 {[%clk
1:13:18]} 10... Ne7 {[%clk 0:53:55]} 11. O-O {[%clk 1:10:40]} 11... Nf5 {[%clk
0:46:52]} 12. Rfd1 {[%clk 1:05:49]} 12... c6 {[%clk 0:43:06]} 13. Qd3 {[%clk
0:53:43]} 13... Qb6 {[%clk 0:35:59]} 14. b3 {[%clk 0:51:44]} 14... Rd8 {[%clk
0:33:52]} 15. Rac1 {[%clk 0:50:20]} 15... f6 {[%clk 0:28:23]} 16. Qc3 {[%clk
0:46:20]} 16... Qc7 {[%clk 0:24:32]} 17. e4 {[%clk 0:36:51]} 17... Ne7 {[%clk
0:20:39]} 18. Nf1 {[%clk 0:31:09]} 18... Qd6 {[%clk 0:12:40]} 19. Ne3 {[%clk
0:28:03]} 19... b6 {[%clk 0:11:52]} 20. cxd5 {[%clk 0:22:53]} 20... exd5 {[%clk
0:10:42]} 21. exd5 {[%clk 0:22:18]} 21... cxd5 {[%clk 0:10:33]} 22. Qc7 {[%clk
0:19:08]} 22... Be6 {[%clk 0:08:30]} 23. Qxd6 {[%clk 0:16:36]} 23... Rxd6 {[%clk
0:08:55]} 24. Rc7 {[%clk 0:14:24]} 24... Nf5 {[%clk 0:07:38]} 25. Nxf5 {[%clk
0:12:41]} 25... Bxf5 {[%clk 0:08:04]} 26. Re1 {[%clk 0:12:53]} 26... a5 {[%clk
0:06:14]} 27. Ree7 {[%clk 0:10:01]} 27... g5 {[%clk 0:06:38]} 28. Bf3 {[%clk
0:08:23]} 28... Rad8 {[%clk 0:05:42]} 29. Kf1 {[%clk 0:06:13]} 29... R8d7 {[%clk
0:05:23]} 30. Rexd7 {[%clk 0:06:05]} 30... Bxd7 {[%clk 0:05:38]} 31. Ke2 {[%clk
0:06:03]} 31... Be6 {[%clk 0:05:13]} 32. Kd3 {[%clk 0:06:18]} 32... Bf7 {[%clk
0:05:12]} 33. Kc3 {[%clk 0:06:28]} 33... Kf8 {[%clk 0:05:09]} 34. b4 {[%clk
0:06:50]} 34... axb4+ {[%clk 0:04:46]} 35. Kxb4 {[%clk 0:07:15]} 35... Rd8
{[%clk 0:04:04]} 36. Kb5 {[%clk 0:07:01]} 36... Rb8 {[%clk 0:04:26]} 37. Kc6
{[%clk 0:06:25]} 37... Be8+ {[%clk 0:03:58]} 38. Kd6 {[%clk 0:05:47]} 38... Bf7
{[%clk 0:03:42]} 39. Rd7 {[%clk 0:05:41]} 39... Rc8 {[%clk 0:03:17]} 40. Bxd5
{[%clk 0:04:55]} 40... Bxd5 {[%clk 0:03:41]} 41. Kxd5 {[%clk 0:05:20]} 41... Rc2
{[%clk 0:04:07]} 42. a4 {[%clk 0:04:45]} 42... Rxf2 {[%clk 0:04:25]} 43. Rxh7
{[%clk 0:05:09]} 43... Ra2 {[%clk 0:04:46]} 44. Ke6 {[%clk 0:05:04]} 44... Rxa4
{[%clk 0:04:55]} 45. Kxf6 {[%clk 0:05:07]} 45... Kg8 {[%clk 0:05:20]} 46. Rg7+
{[%clk 0:04:47]} 46... Kh8 {[%clk 0:05:45]} 47. Rb7 {[%clk 0:04:36]} 47... Rxd4
{[%clk 0:05:59]} 48. Rxb6 {[%clk 0:04:56]} 48... g4 {[%clk 0:05:22]} 49. Kg6
{[%clk 0:04:56]} 49... Rd8 {[%clk 0:05:23]} 50. Kg5 {[%clk 0:04:08]} 50... Rd2
{[%clk 0:04:36]} 51. Rh6+ {[%clk 0:04:15]} 51... Kg7 {[%clk 0:04:59]} 52. Rh4
{[%clk 0:04:40]} 52... Rf2 {[%clk 0:04:59]} 53. Kxg4 {[%clk 0:05:01]} 1-0

[Variant "Standard"]
[Site "Europe Echecs"]

[Event "Championnat du monde jeunes U12F"]
[Date "2024.11.19"]
[White "Harutyunyan, Gabriela"]
[Black "Illes-Nagy, Nora"]
[WhiteElo "1730"]
[BlackElo "1803"]
[Round "5.15"]
[Result "0-1"]
[TimeControl "5400+30"]

1. e4 {[%clk 1:30:27]} 1... c5 {[%clk 1:30:53]} 2. Nc3 {[%clk 1:30:22]} 2... e6
{[%clk 1:31:11]} 3. Nf3 {[%clk 1:30:22]} 3... Nc6 {[%clk 1:31:32]} 4. d4 {[%clk
1:30:38]} 4... cxd4 {[%clk 1:31:48]} 5. Nxd4 {[%clk 1:31:02]} 5... Qc7 {[%clk
1:32:09]} 6. Be3 {[%clk 1:31:11]} 6... a6 {[%clk 1:32:32]} 7. Qd2 {[%clk
1:31:34]} 7... Nf6 {[%clk 1:32:50]} 8. O-O-O {[%clk 1:31:11]} 8... Nxd4 {[%clk
1:32:12]} 9. Bxd4 {[%clk 1:31:06]} 9... e5 {[%clk 1:31:44]} 10. Be3 {[%clk
1:31:22]} 10... Bb4 {[%clk 1:31:37]} 11. f3 {[%clk 1:28:42]} 11... d6 {[%clk
1:30:55]} 12. a3 {[%clk 1:26:28]} 12... Bxc3 {[%clk 1:30:36]} 13. Qxc3 {[%clk
1:26:05]} 13... Qxc3 {[%clk 1:30:49]} 14. bxc3 {[%clk 1:26:30]} 14... Ke7 {[%clk
1:30:51]} 15. Bb6 {[%clk 1:24:45]} 15... Be6 {[%clk 1:26:35]} 16. Be2 {[%clk
1:13:52]} 16... Rac8 {[%clk 1:25:27]} 17. Kb2 {[%clk 1:06:23]} 17... Rc6 {[%clk
1:21:12]} 18. Ba5 {[%clk 0:57:45]} 18... b6 {[%clk 1:15:14]} 19. Bb4 {[%clk
0:57:57]} 19... a5 {[%clk 1:13:17]} 20. Bb5 {[%clk 0:57:55]} 20... Rhc8 {[%clk
1:13:25]} 21. Bxc6 {[%clk 0:56:29]} 21... Rxc6 {[%clk 1:13:48]} 22. Rhe1 {[%clk
0:55:28]} 22... axb4 {[%clk 1:13:53]} 23. cxb4 {[%clk 0:54:16]} 23... b5 {[%clk
1:13:21]} 24. g3 {[%clk 0:48:42]} 24... Nd7 {[%clk 1:10:16]} 25. f4 {[%clk
0:48:30]} 25... f6 {[%clk 1:09:24]} 26. a4 {[%clk 0:43:17]} 26... bxa4 {[%clk
1:08:06]} 27. Ra1 {[%clk 0:40:35]} 27... Nb6 {[%clk 1:08:07]} 28. c3 {[%clk
0:40:38]} 28... Bb3 {[%clk 1:04:03]} 29. h3 {[%clk 0:37:48]} 29... Ke6 {[%clk
1:01:58]} 30. Re2 {[%clk 0:33:51]} 30... g6 {[%clk 0:58:31]} 31. fxe5 {[%clk
0:30:35]} 31... dxe5 {[%clk 0:58:27]} 32. Rc1 {[%clk 0:27:30]} 32... Nc4+ {[%clk
0:58:00]} 33. Ka1 {[%clk 0:27:32]} 33... Rd6 {[%clk 0:56:57]} 34. g4 {[%clk
0:24:42]} 34... Rd3 {[%clk 0:55:56]} 35. Rf1 {[%clk 0:23:30]} 35... Rd1+ {[%clk
0:39:18]} 36. Rxd1 {[%clk 0:23:29]} 36... Bxd1 {[%clk 0:39:46]} 37. Re1 {[%clk
0:22:54]} 37... Bb3 {[%clk 0:39:16]} 38. Kb1 {[%clk 0:21:33]} 38... f5 {[%clk
0:36:50]} 39. gxf5+ {[%clk 0:20:39]} 39... gxf5 {[%clk 0:37:12]} 40. exf5+
{[%clk 0:20:51]} 40... Kxf5 {[%clk 0:37:35]} 41. Rf1+ {[%clk 0:21:15]} 41... Ke4
{[%clk 0:37:25]} 42. Rf8 {[%clk 0:20:37]} 42... Kd3 {[%clk 0:37:18]} 43. Rd8+
{[%clk 0:21:01]} 43... Kxc3 {[%clk 0:37:35]} 44. b5 {[%clk 0:21:19]} 44... Na3+
{[%clk 0:37:54]} 45. Kc1 {[%clk 0:21:01]} 45... Nxb5 {[%clk 0:38:16]} 46. Kb1
{[%clk 0:21:09]} 46... e4 {[%clk 0:38:36]} 47. h4 {[%clk 0:21:23]} 47... e3
{[%clk 0:38:58]} 48. Re8 {[%clk 0:21:44]} 48... Kd2 {[%clk 0:39:10]} 49. Rd8+
{[%clk 0:22:02]} 49... Ke1 {[%clk 0:39:25]} 50. h5 {[%clk 0:22:27]} 50... e2
{[%clk 0:39:44]} 51. h6 {[%clk 0:22:47]} 51... Be6 {[%clk 0:38:16]} 52. Re8
{[%clk 0:23:07]} 52... Nd4 {[%clk 0:38:12]} 0-1

[Variant "Standard"]
[Site "Europe Echecs"]

[Event "Championnat du monde jeunes U12F"]
[Date "2024.11.19"]
[White "Sabou, Stefania Theodora"]
[Black "Li, Sophie"]
[WhiteElo "1736"]
[BlackElo "1798"]
[Round "5.16"]
[Result "1/2-1/2"]
[TimeControl "5400+30"]

1. c4 {[%clk 1:30:55]} 1... e5 {[%clk 1:30:53]} 2. Nc3 {[%clk 1:31:11]} 2... Nf6
{[%clk 1:30:56]} 3. g3 {[%clk 1:31:12]} 3... c6 {[%clk 1:31:00]} 4. d4 {[%clk
1:28:46]} 4... e4 {[%clk 1:31:09]} 5. Qa4 {[%clk 1:26:44]} 5... Na6 {[%clk
1:24:23]} 6. a3 {[%clk 1:23:14]} 6... d6 {[%clk 1:22:34]} 7. Bg2 {[%clk
1:20:29]} 7... Bf5 {[%clk 1:20:15]} 8. Qb3 {[%clk 1:18:33]} 8... Qd7 {[%clk
1:18:32]} 9. Bg5 {[%clk 1:16:52]} 9... Be7 {[%clk 1:17:43]} 10. e3 {[%clk
1:15:11]} 10... Ng4 {[%clk 1:14:58]} 11. Bxe7 {[%clk 1:13:22]} 11... Qxe7 {[%clk
1:15:12]} 12. h3 {[%clk 1:13:21]} 12... Nf6 {[%clk 1:15:25]} 13. g4 {[%clk
1:11:44]} 13... Bg6 {[%clk 1:14:54]} 14. Nge2 {[%clk 1:11:18]} 14... h6 {[%clk
1:11:48]} 15. Ng3 {[%clk 1:07:26]} 15... O-O {[%clk 1:08:46]} 16. O-O {[%clk
1:07:26]} 16... Rfd8 {[%clk 1:08:02]} 17. Nge2 {[%clk 0:55:49]} 17... Rab8
{[%clk 1:05:47]} 18. Rac1 {[%clk 0:50:30]} 18... Nc7 {[%clk 1:04:25]} 19. Nf4
{[%clk 0:49:31]} 19... Bh7 {[%clk 1:04:41]} 20. Qa4 {[%clk 0:49:24]} 20... a6
{[%clk 1:04:29]} 21. b4 {[%clk 0:49:16]} 21... d5 {[%clk 1:03:42]} 22. cxd5
{[%clk 0:46:28]} 22... cxd5 {[%clk 1:03:39]} 23. Qb3 {[%clk 0:45:33]} 23... Ne6
{[%clk 1:02:19]} 24. Nxe6 {[%clk 0:42:22]} 24... Qxe6 {[%clk 1:02:37]} 25. Ne2
{[%clk 0:41:20]} 25... Rbc8 26. b5 {[%clk 0:31:24]} 26... a5 {[%clk 0:59:53]}
27. Nf4 {[%clk 0:30:22]} 27... Qd6 {[%clk 0:59:39]} 28. a4 {[%clk 0:26:44]}
28... b6 {[%clk 0:58:23]} 29. Rc3 {[%clk 0:25:45]} 29... g5 {[%clk 0:54:02]} 30.
Ne2 {[%clk 0:25:28]} 30... Qb4 {[%clk 0:53:04]} 31. Qxb4 {[%clk 0:24:34]} 31...
axb4 {[%clk 0:53:28]} 32. Rc6 {[%clk 0:23:18]} 32... Rxc6 {[%clk 0:53:50]} 33.
bxc6 {[%clk 0:23:41]} 33... Rc8 {[%clk 0:53:58]} 34. Rb1 {[%clk 0:21:39]} 34...
Rxc6 {[%clk 0:50:58]} 35. Rxb4 {[%clk 0:22:01]} 35... Ne8 {[%clk 0:50:38]}
1/2-1/2

[Variant "Standard"]
[Site "Europe Echecs"]

[Event "Championnat du monde jeunes U12F"]
[Date "2024.11.19"]
[White "Telyuk, Anastasiya"]
[Black "Baruch, Amit"]
[WhiteElo "1603"]
[BlackElo "1747"]
[Round "5.17"]
[Result "1/2-1/2"]
[TimeControl "5400+30"]

1. e4 {[%clk 1:30:57]} 1... e5 {[%clk 1:30:54]} 2. Nf3 {[%clk 1:31:21]} 2... Nc6
{[%clk 1:31:18]} 3. d4 {[%clk 1:31:46]} 3... exd4 {[%clk 1:31:33]} 4. c3 {[%clk
1:32:10]} 4... d5 {[%clk 1:31:56]} 5. exd5 {[%clk 1:32:31]} 5... Qxd5 {[%clk
1:32:19]} 6. cxd4 {[%clk 1:32:50]} 6... Bg4 {[%clk 1:32:34]} 7. Be2 {[%clk
1:33:09]} 7... Bb4+ {[%clk 1:32:42]} 8. Nc3 {[%clk 1:33:28]} 8... Bxf3 {[%clk
1:32:01]} 9. Bxf3 {[%clk 1:33:45]} 9... Qc4 {[%clk 1:32:18]} 10. Qb3 {[%clk
1:33:30]} 10... Qxb3 {[%clk 1:32:20]} 11. axb3 {[%clk 1:33:46]} 11... Nge7
{[%clk 1:31:52]} 12. O-O {[%clk 1:33:37]} 12... O-O-O {[%clk 1:31:50]} 13. Be3
{[%clk 1:24:20]} 13... a6 {[%clk 1:30:31]} 14. Ra4 {[%clk 1:22:16]} 14... Bd6
{[%clk 1:29:37]} 15. Ne4 {[%clk 1:17:40]} 15... h6 {[%clk 1:24:23]} 16. Rc1
{[%clk 1:06:15]} 16... f5 {[%clk 1:16:46]} 17. Nxd6+ {[%clk 0:59:34]} 17... Rxd6
{[%clk 1:16:11]} 18. Bf4 {[%clk 0:54:03]} 18... Rd7 {[%clk 1:12:16]} 19. Rac4
{[%clk 0:44:28]} 19... g5 {[%clk 1:01:09]} 20. Be5 {[%clk 0:40:09]} 20... Nxe5
{[%clk 0:58:27]} 21. dxe5 {[%clk 0:40:31]} 21... c6 {[%clk 0:56:55]} 22. h3
{[%clk 0:35:58]} 22... Kd8 {[%clk 0:43:27]} 23. Rc5 {[%clk 0:32:20]} 23... Nd5
{[%clk 0:36:36]} 24. Bxd5 {[%clk 0:32:22]} 24... Rxd5 {[%clk 0:36:02]} 25. Rxd5+
{[%clk 0:32:47]} 25... cxd5 {[%clk 0:36:26]} 26. Rc5 {[%clk 0:32:26]} 26... d4
{[%clk 0:34:05]} 27. Rd5+ {[%clk 0:32:43]} 27... Ke7 {[%clk 0:34:21]} 28. Rxd4
{[%clk 0:32:24]} 28... Ke6 {[%clk 0:34:35]} 29. Rd6+ {[%clk 0:31:25]} 29... Kxe5
{[%clk 0:34:25]} 30. Rd7 {[%clk 0:31:45]} 30... b5 {[%clk 0:33:08]} 31. Ra7
{[%clk 0:31:49]} 31... Kd5 {[%clk 0:31:42]} 32. Rxa6 {[%clk 0:32:10]} 32... Kc5
{[%clk 0:31:10]} 33. Kf1 {[%clk 0:30:17]} 33... Kb4 {[%clk 0:28:20]} 34. Rb6
{[%clk 0:21:04]} 34... Rd8 1/2-1/2

[Variant "Standard"]
[Site "Europe Echecs"]

[Event "Championnat du monde jeunes U12F"]
[Date "2024.11.19"]
[White "Muradova, Nebahat"]
[Black "Siskou, Evangelia"]
[WhiteElo "1626"]
[BlackElo "1884"]
[Round "5.18"]
[Result "0-1"]
[TimeControl "5400+30"]

1. d4 {[%clk 1:30:58]} 1... d5 {[%clk 1:30:50]} 2. c4 {[%clk 1:31:24]} 2... c6
{[%clk 1:31:16]} 3. Nf3 {[%clk 1:31:40]} 3... Nf6 {[%clk 1:31:28]} 4. Nc3 {[%clk
1:32:03]} 4... e6 {[%clk 1:31:50]} 5. Bg5 {[%clk 1:32:07]} 5... Be7 {[%clk
1:32:07]} 6. cxd5 {[%clk 1:32:02]} 6... exd5 {[%clk 1:32:31]} 7. e3 {[%clk
1:31:57]} 7... Nbd7 {[%clk 1:29:27]} 8. Bd3 {[%clk 1:32:08]} 8... O-O {[%clk
1:29:04]} 9. O-O {[%clk 1:32:26]} 9... h6 {[%clk 1:26:04]} 10. Bh4 {[%clk
1:32:11]} 10... Ne4 {[%clk 1:26:18]} 11. Bxe7 {[%clk 1:32:20]} 11... Qxe7 {[%clk
1:26:47]} 12. Bxe4 {[%clk 1:32:30]} 12... dxe4 {[%clk 1:27:15]} 13. Nd2 {[%clk
1:32:49]} 13... f5 {[%clk 1:27:21]} 14. Qb3+ {[%clk 1:31:30]} 14... Kh8 {[%clk
1:25:54]} 15. Ne2 {[%clk 1:29:41]} 15... Nf6 {[%clk 1:07:42]} 16. Nf4 Kh7 {[%clk
1:07:55]} 17. Rac1 {[%clk 1:21:10]} 17... g5 {[%clk 0:55:00]} 18. Ne2 {[%clk
1:19:27]} 18... Nd5 {[%clk 0:54:58]} 19. Nc3 {[%clk 1:14:09]} 19... Be6 {[%clk
0:51:55]} 20. Nxd5 {[%clk 1:12:24]} 20... Bxd5 {[%clk 0:51:49]} 21. Qc2 {[%clk
1:12:20]} 21... b5 {[%clk 0:42:45]} 22. Qc5 {[%clk 1:09:38]} 22... Qxc5 {[%clk
0:35:48]} 23. Rxc5 {[%clk 1:07:49]} 23... f4 {[%clk 0:34:07]} 24. b3 {[%clk
1:02:40]} 24... Rf7 {[%clk 0:29:31]} 25. Re1 {[%clk 0:51:07]} 25... Re8 {[%clk
0:23:01]} 26. Nb1 {[%clk 0:47:35]} 26... b4 {[%clk 0:14:10]} 27. Nd2 {[%clk
0:46:56]} 27... Ref8 {[%clk 0:09:57]} 28. exf4 {[%clk 0:45:18]} 28... Rxf4
{[%clk 0:10:26]} 29. Re2 {[%clk 0:45:37]} 29... Kg6 {[%clk 0:04:55]} 30. Nc4
{[%clk 0:44:52]} 30... e3 {[%clk 0:04:02]} 31. Nxe3 {[%clk 0:44:50]} 31... Rxd4
{[%clk 0:04:25]} 32. h3 {[%clk 0:44:56]} 32... Re8 {[%clk 0:03:44]} 33. Rec2
{[%clk 0:45:03]} 33... Be4 {[%clk 0:03:44]} 34. R2c4 {[%clk 0:44:47]} 34... Rd2
{[%clk 0:02:53]} 35. Rxb4 {[%clk 0:43:56]} 35... Rxa2 {[%clk 0:02:58]} 36. Ng4
{[%clk 0:43:05]} 36... Bd5 {[%clk 0:02:02]} 37. Ne3 {[%clk 0:41:37]} 37... Rxe3
{[%clk 0:01:31]} 38. fxe3 {[%clk 0:41:57]} 38... Rxg2+ {[%clk 0:01:57]} 39. Kf1
{[%clk 0:42:19]} 39... Rg3 {[%clk 0:01:17]} 40. e4 {[%clk 0:42:08]} 40... Bxb3
{[%clk 0:01:17]} 41. Rxc6+ {[%clk 0:42:25]} 41... Kh5 {[%clk 0:01:46]} 42. e5
{[%clk 0:42:06]} 42... Rxh3 {[%clk 0:01:14]} 43. Rb8 {[%clk 0:38:04]} 43... Kg4
{[%clk 0:00:44]} 44. Rf6 {[%clk 0:37:08]} 44... Bc4+ {[%clk 0:00:38]} 45. Kf2
{[%clk 0:37:24]} 45... a5 {[%clk 0:00:42]} 46. Ra8 {[%clk 0:34:42]} 46... Rh2+
{[%clk 0:00:43]} 47. Ke3 {[%clk 0:35:05]} 47... Ra2 {[%clk 0:00:38]} 48. Kd4
{[%clk 0:34:55]} 48... Bb3 {[%clk 0:00:40]} 49. e6 {[%clk 0:34:13]} 49... Re2
{[%clk 0:00:49]} 50. Re8 {[%clk 0:33:43]} 50... h5 {[%clk 0:00:42]} 51. Kc5
{[%clk 0:31:47]} 51... Bxe6 {[%clk 0:00:34]} 52. Rfxe6 {[%clk 0:32:10]} 52...
Rxe6 {[%clk 0:01:03]} 53. Rxe6 {[%clk 0:32:32]} 53... h4 {[%clk 0:01:28]} 54.
Re4+ {[%clk 0:30:42]} 54... Kf3 {[%clk 0:01:32]} 55. Kd4 {[%clk 0:31:05]} 55...
g4 {[%clk 0:01:26]} 56. Re3+ {[%clk 0:30:42]} 56... Kf2 {[%clk 0:00:59]} 57. Ke4
{[%clk 0:30:55]} 57... h3 {[%clk 0:00:47]} 58. Ra3 {[%clk 0:30:11]} 58... h2
{[%clk 0:01:08]} 59. Ra2+ {[%clk 0:30:28]} 59... Kg3 {[%clk 0:01:29]} 60. Ra1
{[%clk 0:30:48]} 60... Kg2 {[%clk 0:01:49]} 61. Ra2+ {[%clk 0:30:56]} 61... Kh3
{[%clk 0:02:08]} 62. Ra1 {[%clk 0:31:02]} 62... Kg2 {[%clk 0:00:37]} 63. Ra2+
{[%clk 0:31:23]} 63... Kg3 {[%clk 0:01:00]} 64. Ra1 {[%clk 0:31:48]} 64... a4
{[%clk 0:01:04]} 65. Ra3+ {[%clk 0:31:53]} 65... Kh4 {[%clk 0:01:17]} 66. Ra1
{[%clk 0:32:10]} 66... g3 {[%clk 0:01:34]} 67. Kf3 {[%clk 0:32:19]} 67... Kh3
{[%clk 0:02:00]} 68. Rc1 {[%clk 0:32:07]} 68... a3 {[%clk 0:01:27]} 69. Rb1
{[%clk 0:32:02]} 69... a2 {[%clk 0:01:53]} 70. Rc1 {[%clk 0:32:28]} 70... g2
{[%clk 0:02:07]} 71. Rc8 {[%clk 0:32:30]} 71... a1=Q {[%clk 0:02:22]} 0-1

[Variant "Standard"]
[Site "Europe Echecs"]